fUST/lending_fUST_20260618
["ID","MTS","AMOUNT","RATE_DAILY","PERIOD"]
[425389778,1781743840000,-457.8996078,0.0001896,2]
[425389780,1781743840000,-457.8996078,0.0001896,2]
[425389784,1781743840000,-5000.0,0.00019,2]
[425389786,1781743840000,-5000.3019241,0.00019,2]
[425389782,1781743840000,-322.522605,0.0001896,2]
[425389791,1781743840000,-337.836756,0.00019012,2]
[425389787,1781743840000,-215.388634,0.00019012,2]
[425389793,1781743840000,-160.0,0.00019012,2]
[425389765,1781743840000,-151.0,0.0001896,2]
[425389799,1781743840000,-160.0,0.00019012,2]
[425389761,1781743840000,-151.0,0.0001896,2]
[425389751,1781743840000,-717.04105516,0.0001896,2]
[425389720,1781743840000,-500.0,0.00018599,2]
[425389748,1781743840000,-163.0,0.0001891,2]
[425389797,1781743840000,-195.504408,0.00019012,2]
[425389712,1781743840000,-500.0,0.00018599,2]
[425389710,1781743840000,-166.331704,0.000185,2]
[425389709,1781743840000,-461.81903456,0.000185,2]
[425389705,1781743840000,-461.81903456,0.000184,2]
[425389707,1781743840000,-171.917472,0.00018468,2]
[425389716,1781743840000,-500.0,0.00018599,2]
[425389722,1781743840000,-555.958705,0.00018599,2]
[425389714,1781743840000,-500.0,0.00018599,2]
[425389718,1781743840000,-500.0,0.00018599,2]
[425389723,1781743840000,-537.78079137,0.00018614,2]
[425389725,1781743840000,-462.62786056,0.00018614,2]
[425389727,1781743840000,-500.0,0.0001863,2]
[425389729,1781743840000,-500.0,0.0001863,2]
[425389731,1781743840000,-575.83,0.0001863,2]
[425389733,1781743840000,-403.4835946,0.00018691,2]
[425389737,1781743840000,-414.32767363,0.00018757,2]
[425389738,1781743840000,-158.41,0.00018763,2]
[425389735,1781743840000,-461.81903456,0.000187,2]
[425389740,1781743840000,-500.0,0.00018904,2]
[425389744,1781743840000,-500.0,0.00018904,2]
[425389742,1781743840000,-165.622,0.00018904,2]
[425389746,1781743840000,-575.83,0.00018904,2]
[425389750,1781743840000,-152837.00797047,0.00018912,2]
[425389795,1781743840000,-177.752204,0.00019012,2]
[425389839,1781743840000,-332.2136279,0.00019644,2]
[425389802,1781743840000,-171.229424,0.00019012,2]
[425389864,1781743840000,-151.0,0.00019782,2]
[425389861,1781743840000,-326.8661211,0.00019782,2]
[425389866,1781743840000,-457.8996078,0.00019782,2]
[425389862,1781743840000,-482.573048,0.00019782,2]
[425389851,1781743840000,-151.0,0.00019782,2]
[425389855,1781743840000,-457.8996078,0.00019782,2]
[425389853,1781743840000,-151.4627661,0.00019782,2]
[425389868,1781743840000,-326.8661211,0.00019782,2]
[425389856,1781743840000,-151.0,0.00019782,2]
[425389800,1781743840000,-165.614712,0.00019012,2]
[425389872,1781743840000,-925.25572112,0.00019825,2]
[425389870,1781743840000,-178.99508092,0.000198,2]
[425389877,1781743840000,-280.02,0.00019929,2]
[425389876,1781743840000,-210.0,0.00019929,2]
[425389881,1781743840000,-198.737654,0.00019963,2]
[425389879,1781743840000,-213.302644,0.00019963,2]
[425389883,1781743840000,-178.099107,0.00019963,2]
[425389886,1781743840000,-200.677407,0.00019999,2]
[425389888,1781743840000,-200.0,0.00019999,2]
[425389895,1781743840000,-79374.90618645,0.0002,2]
[425389890,1781743840000,-203.82043286,0.00019999,2]
[425389892,1781743840000,-22469.05732981,0.0002,2]
[425389897,1781743840000,-5071.17314401,0.0002,2]
[425389859,1781743840000,-457.8996078,0.00019782,2]
[425389849,1781743840000,-457.8996078,0.00019782,2]
[425389874,1781743840000,-949.36873771,0.00019848,2]
[425389845,1781743840000,-575.83,0.00019726,2]
[425389817,1781743840000,-172.0,0.00019151,3]
[425389806,1781743840000,-445.247769,0.00019012,2]
[425389810,1781743840000,-151.0,0.00019025,2]
[425389814,1781743840000,-151.0,0.00019025,2]
[425389808,1781743840000,-457.899608,0.00019025,2]
[425389812,1781743840000,-151.0,0.00019025,2]
[425389816,1781743840000,-151.282895,0.00019025,2]
[425389821,1781743840000,-500.0,0.00019178,2]
[425389823,1781743840000,-575.83,0.00019178,2]
[425389824,1781743840000,-1521.1250994,0.00019187,2]
[425389847,1781743840000,-151.0,0.00019782,2]
[425389819,1781743840000,-500.0,0.00019178,2]
[425389827,1781743840000,-771.04643426,0.00019306,2]
[425389835,1781743840000,-225.224504,0.000196,2]
[425389837,1781743840000,-230.20934,0.000196,2]
[425389829,1781743840000,-500.0,0.00019452,2]
[425389828,1781743840000,-500.0,0.00019452,2]
[425389804,1781743840000,-345.314009,0.00019012,2]
[425389843,1781743840000,-500.0,0.00019726,2]
[425389841,1781743840000,-500.0,0.00019726,2]
[425389831,1781743840000,-575.83,0.00019452,2]
[425389833,1781743840000,-300.0,0.00019589,3]
[425389825,1781743840000,-896.30131895,0.00019306,2]
[425390264,1781743846000,-259.203,0.00016609,2]
[425390270,1781743846000,-2958.18435565,0.00016609,2]
[425390272,1781743846000,-2656.02754636,0.00016609,2]
[425390501,1781745031000,-2672.7264327,0.00016,2]
[425390502,1781745031000,-500.0,0.00016508,2]
[425390504,1781745031000,-500.0,0.00016508,2]
[425390503,1781745031000,-500.0,0.00016508,2]
[425390499,1781745031000,-160.566907,0.00015529,2]
[425390497,1781745031000,-156.39706578,0.00014305,7]
[425390505,1781745031000,-19.87653384,0.00016508,2]
[425390495,1781745031000,-156.39706578,0.00014024,2]
[425390965,1781746224000,154.244931,0.00023047,120]
[425391022,1781746232000,-500.0,0.00016409,2]
[425391024,1781746232000,-500.0,0.00016409,2]
[425391009,1781746232000,-210.96377094,0.00015664,2]
[425391011,1781746232000,-500.0,0.00016407,2]
[425391007,1781746232000,-685.1595902,0.00015416,2]
[425391001,1781746232000,-156.39706577,0.00013365,14]
[425391014,1781746232000,-500.0,0.00016409,2]
[425391005,1781746232000,-151.0,0.00014001,2]
[425391003,1781746232000,-168.82366532,0.00013861,2]
[425391020,1781746232000,-500.0,0.00016409,2]
[425391016,1781746232000,-500.0,0.00016409,2]
[425391018,1781746232000,-500.0,0.00016409,2]
[425391012,1781746232000,-500.0,0.00016408,2]
[425391027,1781746232000,-500.0,0.00016409,2]
[425391026,1781746232000,-500.0,0.00016409,2]
[425391049,1781746232000,-500.0,0.00016409,2]
[425391045,1781746232000,-500.0,0.00016409,2]
[425391047,1781746232000,-500.0,0.00016409,2]
[425391043,1781746232000,-500.0,0.00016409,2]
[425391031,1781746232000,-500.0,0.00016409,2]
[425391041,1781746232000,-500.0,0.00016409,2]
[425391050,1781746232000,-43.31607148,0.00016409,2]
[425391037,1781746232000,-500.0,0.00016409,2]
[425391039,1781746232000,-500.0,0.00016409,2]
[425391033,1781746232000,-500.0,0.00016409,2]
[425391029,1781746232000,-500.0,0.00016409,2]
[425391035,1781746232000,-500.0,0.00016409,2]
[425391116,1781746238000,-419.67684579,0.00016409,2]
[425391144,1781746238000,-500.0,0.00016409,2]
[425391131,1781746238000,-440.39686767,0.00016409,2]
[425391129,1781746238000,-59.60313233,0.00016409,2]
[425391127,1781746238000,-500.0,0.00016409,2]
[425391114,1781746238000,-80.32315421,0.00016409,2]
[425391110,1781746238000,-456.68392852,0.00016409,2]
[425391123,1781746238000,-415.25029515,0.00016409,2]
[425391125,1781746238000,-84.74970485,0.00016409,2]
[425391118,1781746238000,-500.0,0.00016409,2]
[425391121,1781746238000,-500.0,0.00016409,2]
[425391112,1781746238000,-500.0,0.00016409,2]
[425391148,1781746238000,-500.0,0.00016409,2]
[425391119,1781746238000,-500.0,0.00016409,2]
[425391133,1781746238000,-309.63780971,0.00016409,2]
[425391138,1781746238000,-500.0,0.00016409,2]
[425391135,1781746238000,-190.36219029,0.00016409,2]
[425391173,1781746238000,-469.75586534,0.00016409,2]
[425391171,1781746238000,-500.0,0.00016409,2]
[425391169,1781746238000,-500.0,0.00016409,2]
[425391167,1781746238000,-500.0,0.00016409,2]
[425391158,1781746238000,-500.0,0.00016409,2]
[425391146,1781746238000,-500.0,0.00016409,2]
[425391165,1781746238000,-116.15747006,0.00016409,2]
[425391161,1781746238000,-383.84252994,0.00016409,2]
[425391152,1781746238000,-500.0,0.00016409,2]
[425391142,1781746238000,-500.0,0.00016409,2]
[425391137,1781746238000,-500.0,0.00016409,2]
[425391140,1781746238000,-500.0,0.00016409,2]
[425391150,1781746238000,-500.0,0.00016409,2]
[425391156,1781746238000,-500.0,0.00016409,2]
[425391409,1781746240000,-166.61207966,0.00016409,2]
[425391407,1781746240000,-333.38792034,0.00016409,2]
[425391405,1781746240000,-30.24413466,0.00016409,2]
[425391411,1781746240000,-500.0,0.00016409,2]
[425391418,1781746240000,-500.0,0.00016409,2]
[425391416,1781746240000,-433.02046418,0.00016409,2]
[425391419,1781746240000,-500.0,0.00016409,2]
[425391421,1781746240000,-229.52117487,0.00016409,2]
[425391413,1781746240000,-66.97953582,0.00016409,2]
[425391800,1781746243000,-500.0,0.00016409,2]
[425391790,1781746243000,-270.47882513,0.00016409,2]
[425391792,1781746243000,-500.0,0.00016409,2]
[425391794,1781746243000,-500.0,0.00016409,2]
[425391804,1781746243000,-500.0,0.00016409,2]
[425391796,1781746243000,-500.0,0.00016409,2]
[425391806,1781746243000,-529.54208808,0.00016409,2]
[425391802,1781746243000,-500.0,0.00016409,2]
[425391798,1781746243000,-500.0,0.00016409,2]
[425391812,1781746243000,-500.0,0.00016438,2]
[425391814,1781746243000,-500.0,0.00016508,2]
[425391810,1781746243000,-500.0,0.00016438,2]
[425391816,1781746243000,-500.0,0.00016508,2]
[425391837,1781746243000,-500.0,0.00016986,2]
[425391839,1781746243000,-500.0,0.00017056,2]
[425391834,1781746243000,-500.0,0.00016986,2]
[425391828,1781746243000,-500.0,0.00016712,2]
[425391830,1781746243000,-500.0,0.00016782,2]
[425391822,1781746243000,-160.0,0.00016608,2]
[425391832,1781746243000,-500.0,0.00016986,2]
[425391820,1781746243000,-160.0,0.00016608,2]
[425391818,1781746243000,-163.0,0.0001651,2]
[425391808,1781746243000,-500.0,0.00016438,2]
[425391826,1781746243000,-500.0,0.00016712,2]
[425391824,1781746243000,-500.0,0.00016712,2]
[425391874,1781746244000,-500.0,0.00018082,2]
[425391867,1781746244000,-307.87935636,0.00018,2]
[425391863,1781746244000,-500.0,0.00017808,2]
[425391855,1781746244000,-500.0,0.00017534,2]
[425391873,1781746244000,-217.78679985,0.00018079,2]
[425391857,1781746244000,-251.18261102,0.0001766,2]
[425391876,1781746244000,-500.0,0.00018082,2]
[425391847,1781746244000,-202.0,0.0001726,2]
[425391849,1781746244000,-500.0,0.0001726,2]
[425391853,1781746244000,-500.0,0.00017534,2]
[425391851,1781746244000,-500.0,0.00017534,2]
[425391845,1781746244000,-500.0,0.0001726,2]
[425391841,1781746244000,-160.5669078,0.00017248,2]
[425391843,1781746244000,-500.0,0.0001726,2]
[425391859,1781746244000,-500.0,0.00017808,2]
[425391878,1781746244000,-500.0,0.00018082,2]
[425391865,1781746244000,-326.8661211,0.00017836,2]
[425391871,1781746244000,-464.629,0.00018066,2]
[425391861,1781746244000,-500.0,0.00017808,2]
[425391906,1781746244000,-307.87935636,0.000187,2]
[425391908,1781746244000,-385.94786357,0.00018745,2]
[425391898,1781746244000,-500.0,0.0001863,2]
[425391900,1781746244000,-500.0,0.0001863,2]
[425391890,1781746244000,-307.87935636,0.000184,2]
[425391904,1781746244000,-335.95975463,0.0001863,2]
[425391896,1781746244000,-435.57359971,0.00018598,2]
[425391902,1781746244000,-164.04024537,0.0001863,2]
[425391892,1781746244000,-307.87935636,0.000185,2]
[425391886,1781746244000,-500.0,0.00018356,2]
[425391888,1781746244000,-500.0,0.00018356,2]
[425391882,1781746244000,-307.87935636,0.000182,2]
[425391880,1781746244000,-151.0,0.00018114,2]
[425391884,1781746244000,-500.0,0.00018356,2]
[425391869,1781746244000,-958.0,0.00018066,2]
[425391894,1781746244000,-171.917472,0.00018527,2]
[425392202,1781746246000,-500.0,0.00018745,2]
[425392204,1781746246000,-500.0,0.00018745,2]
[425392222,1781746246000,-500.0,0.00018745,2]
[425392206,1781746246000,-500.0,0.00018745,2]
[425392208,1781746246000,-500.0,0.00018745,2]
[425392210,1781746246000,-500.0,0.00018745,2]
[425392224,1781746246000,-413.72826393,0.00018745,2]
[425392200,1781746246000,-500.0,0.00018745,2]
[425392211,1781746246000,-500.0,0.00018745,2]
[425392188,1781746246000,-500.0,0.00018745,2]
[425392164,1781746246000,-500.0,0.00018745,2]
[425392183,1781746246000,-500.0,0.00018745,2]
[425392195,1781746246000,-500.0,0.00018745,2]
[425392194,1781746246000,-500.0,0.00018745,2]
[425392198,1781746246000,-500.0,0.00018745,2]
[425392192,1781746246000,-500.0,0.00018745,2]
[425392190,1781746246000,-500.0,0.00018745,2]
[425392181,1781746246000,-94.33453116,0.00018745,2]
[425392213,1781746246000,-500.0,0.00018745,2]
[425392162,1781746246000,-231.9882652,0.00018745,2]
[425392160,1781746246000,-160.0,0.00016608,2]
[425392166,1781746246000,-365.0417318,0.00018745,2]
[425392184,1781746246000,-500.0,0.00018745,2]
[425392215,1781746246000,-500.0,0.00018745,2]
[425392186,1781746246000,-500.0,0.00018745,2]
[425392217,1781746246000,-500.0,0.00018745,2]
[425392269,1781746246000,-453.31,0.00019178,2]
[425392271,1781746246000,-281.42584795,0.00019178,2]
[425392267,1781746246000,-500.0,0.00019178,2]
[425392265,1781746246000,-500.0,0.00018904,2]
[425392263,1781746246000,-500.0,0.00018904,2]
[425392261,1781746246000,-500.0,0.00018904,2]
[425392259,1781746246000,-165.623,0.00018898,2]
[425392257,1781746246000,-215.83007975,0.00018832,2]
[425392255,1781746246000,-629.81267344,0.00018793,2]
[425392220,1781746246000,-500.0,0.00018745,2]
[425392251,1781746246000,-365.6830507,0.00018747,2]
[425392249,1781746246000,-1181.4150048,0.00018747,2]
[425392253,1781746246000,-646.73960305,0.00018793,2]
[425392243,1781746246000,-500.0,0.00018745,2]
[425392231,1781746246000,-500.0,0.00018745,2]
[425392227,1781746246000,-500.0,0.00018745,2]
[425392239,1781746246000,-500.0,0.00018745,2]
[425392226,1781746246000,-500.0,0.00018745,2]
[425392235,1781746246000,-500.0,0.00018745,2]
[425392233,1781746246000,-500.0,0.00018745,2]
[425392245,1781746246000,-500.0,0.00018745,2]
[425392237,1781746246000,-500.0,0.00018745,2]
[425392247,1781746246000,-818.8998668,0.00018747,2]
[425392241,1781746246000,-500.0,0.00018745,2]
[425392230,1781746246000,-500.0,0.00018745,2]
[425392273,1781746247000,-500.0,0.00019178,2]
[425392275,1781746247000,-178.05115025,0.00019205,3]
[425392279,1781746247000,-500.0,0.00019452,2]
[425392283,1781746247000,-500.0,0.00019726,2]
[425392277,1781746247000,-201.92702386,0.00019452,2]
[425392281,1781746247000,-1335.22229613,0.000196,2]
[425392288,1781746247000,-462.48047869,0.00019782,2]
[425392290,1781746247000,-476.03911358,0.00019782,2]
[425392292,1781746247000,-222.0,0.0001979,2]
[425392286,1781746247000,-264.46617421,0.00019782,2]
[425392294,1781746247000,-3108.0729173,0.000198,2]
[425392284,1781746247000,-256.93359927,0.00019782,2]
[425396320,1781746469000,160.0,0.0002,120]
[425396321,1781746471000,160.0,0.000233,120]
[425396701,1781747432000,-5704.84927227,0.00017498,2]
[425396709,1781747432000,-192.42459773,0.000182,2]
[425396708,1781747432000,-516.2034413,0.00018081,2]
[425396705,1781747432000,-53.75711148,0.00018078,2]
[425396710,1781747432000,-958.0,0.00018276,2]
[425396712,1781747432000,-307.58731025,0.000183,2]
[425396706,1781747432000,-160.0,0.00018078,2]
[425396703,1781747432000,-192.42459773,0.00018,2]
[425396704,1781747432000,-106.24288852,0.00018078,2]
[425396707,1781747432000,-160.0,0.00018078,2]
[425396702,1781747432000,-3905.07520963,0.00017498,2]
[425396694,1781747432000,-500.0,0.00016438,2]
[425396722,1781747432000,-285.59337558,0.00018937,2]
[425396697,1781747432000,-10863.00223982,0.00017148,2]
[425396695,1781747432000,-513.86295447,0.00016712,2]
[425396696,1781747432000,-4134.82994268,0.00017148,2]
[425396689,1781747432000,-201.83479502,0.00012445,13]
[425396693,1781747432000,-152.0,0.00016279,7]
[425396691,1781747432000,-181.97558726,0.00013224,7]
[425396692,1781747432000,-272.96338093,0.00014001,7]
[425396699,1781747432000,-502.55562234,0.00017498,2]
[425396698,1781747432000,-418.33008696,0.00017497,2]
[425396690,1781747432000,-151.0,0.00012571,2]
[425396700,1781747432000,-510.41274166,0.00017498,2]
[425396724,1781747432000,-150.15370743,0.00018937,2]
[425396738,1781747432000,-822.18751768,0.00019624,2]
[425396716,1781747432000,-192.42459773,0.000184,2]
[425396726,1781747432000,-500.0,0.00019,2]
[425396748,1781747432000,-264.02111641,0.00019899,2]
[425396749,1781747432000,-502.81731885,0.00019899,2]
[425396746,1781747432000,-1010.0,0.000198,7]
[425396747,1781747432000,-240.7789397,0.000198,2]
[425396743,1781747432000,-500.0,0.00019747,2]
[425396744,1781747432000,-520.8387135,0.00019799,2]
[425396745,1781747432000,-1891.9270827,0.000198,2]
[425396737,1781747432000,-1005.3,0.000196,5]
[425396742,1781747432000,-2165.35500861,0.000197,2]
[425396739,1781747432000,-846.29175748,0.00019624,2]
[425396741,1781747432000,-1321.00854018,0.00019624,2]
[425396740,1781747432000,-1283.38332838,0.00019624,2]
[425396734,1781747432000,-540.95617867,0.00019474,3]
[425396735,1781747432000,-525.54856382,0.00019474,3]
[425396720,1781747432000,-217.8735415,0.00018591,2]
[425396718,1781747432000,-192.42459773,0.000185,2]
[425396731,1781747432000,-505.77801539,0.00019061,2]
[425396733,1781747432000,-500.0,0.00019473,2]
[425396714,1781747432000,-701.62920782,0.000183,2]
[425396729,1781747432000,-614.1749001,0.00019018,2]
[425396730,1781747432000,-886.0612536,0.00019018,2]
[425396732,1781747432000,-167.65268137,0.00019233,3]
[425396728,1781747432000,-617.9745667,0.00019018,2]
[425396736,1781747432000,-890.60958313,0.000196,2]
[425396846,1781747438000,-332.44973154,0.00017498,2]
[425396849,1781747438000,-626.89747677,0.00019899,2]
[425396851,1781747438000,-332.29662897,0.00019899,2]
[425396850,1781747438000,-626.89747677,0.00019899,2]
[425396848,1781747438000,-124.08015792,0.00019899,2]
[425396847,1781747438000,-1009.216518,0.00019022,2]
[425396855,1781747443000,-498.45,0.00019743,2]
[425396858,1781747448000,-294.6008478,0.00019899,2]
[425396856,1781747448000,-593.73972208,0.000196,2]
[425396857,1781747448000,-510.766518,0.00019743,2]
[425396859,1781747448000,-626.89747677,0.00019899,2]
[425396863,1781747448000,-626.89747677,0.00019899,2]
[425396860,1781747448000,-626.89747677,0.00019899,2]
[425396864,1781747448000,-488.82597868,0.00019899,2]
[425396862,1781747448000,-626.89747677,0.00019899,2]
[425396861,1781747448000,-626.89747677,0.00019899,2]
[425396865,1781747449000,-138.07149809,0.00019899,2]
[425396868,1781747449000,-184.37498644,0.00019899,2]
[425396867,1781747449000,-442.52249033,0.00019899,2]
[425396869,1781747449000,-626.89747677,0.00019899,2]
[425396870,1781747449000,-626.89747677,0.00019899,2]
[425396866,1781747449000,-626.89747677,0.00019899,2]
[425396877,1781747449000,-278.64760548,0.00019899,2]
[425396874,1781747449000,-626.89747677,0.00019899,2]
[425396873,1781747449000,-626.89747677,0.00019899,2]
[425396875,1781747449000,-626.89747677,0.00019899,2]
[425396876,1781747449000,-626.89747677,0.00019899,2]
[425396871,1781747449000,-626.89747677,0.00019899,2]
[425396872,1781747449000,-626.89747677,0.00019899,2]
[425398766,1781747509000,438.86,0.00023043,30]
[425398785,1781747739000,152.0,0.00016805,30]
[425398786,1781747740000,152.0,0.00016839,30]
[425398787,1781747776000,707.09555995,0.00023043,120]
[425398789,1781747800000,156.53736372,0.0002054,120]
[425398790,1781747811000,185.78711949,0.000178,30]
[425398793,1781747856000,535.91517285,7.6e-05,2]
[425398794,1781747861000,152.89946168,0.00023043,30]
[425398795,1781747865000,164.13528398,0.00023043,120]
[425398803,1781748072000,-211.58212883,0.00012441,13]
[425398808,1781748247000,195.0,0.00024658,120]
[425398838,1781748638000,-500.0,0.00011999,2]
[425398836,1781748638000,-4828.82830441,0.00011761,13]
[425398837,1781748638000,-3393.53416633,0.0001188,13]
[425398840,1781748638000,-500.0,0.00011999,2]
[425398843,1781748638000,-18277.0,0.00012,2]
[425398839,1781748638000,-500.0,0.00011999,2]
[425398842,1781748638000,-500.0,0.00011999,2]
[425398844,1781748638000,-16056.00560252,0.00012,2]
[425398845,1781748638000,-2099.02828019,0.00012,2]
[425398841,1781748638000,-543.17016023,0.00011999,2]
[425398874,1781748639000,-738.62990023,0.00016236,2]
[425398879,1781748639000,-738.62990023,0.00016236,2]
[425398881,1781748639000,-738.62990023,0.00016236,2]
[425398882,1781748639000,-5022.42045042,0.00016237,2]
[425398880,1781748639000,-738.62990023,0.00016236,2]
[425398887,1781748639000,-250.34990729,0.00016311,2]
[425398886,1781748639000,-250.34990729,0.00016287,2]
[425398889,1781748639000,-250.34990729,0.00016336,2]
[425398885,1781748639000,-160.0,0.00016265,2]
[425398884,1781748639000,-250.34990729,0.00016262,2]
[425398888,1781748639000,-660.61,0.00016328,3]
[425398877,1781748639000,-738.62990023,0.00016236,2]
[425398883,1781748639000,-250.34990732,0.00016237,2]
[425398892,1781748639000,-336.42823918,0.00016436,2]
[425398891,1781748639000,-422106.70529253,0.00016338,2]
[425398893,1781748639000,-160.0,0.00016437,2]
[425398895,1781748639000,-511.87561957,0.00016438,2]
[425398894,1781748639000,-160.0,0.00016437,2]
[425398896,1781748639000,-507.86064581,0.00016438,2]
[425398898,1781748639000,-515.89604674,0.00016438,2]
[425398900,1781748639000,-502.76524293,0.00016438,2]
[425398901,1781748639000,-504.5694634,0.00016438,2]
[425398899,1781748639000,-520.59193112,0.00016438,2]
[425398897,1781748639000,-505.08396753,0.00016438,2]
[425398903,1781748639000,-500.59574269,0.00016438,2]
[425398906,1781748639000,-515.39438121,0.00016438,2]
[425398902,1781748639000,-507.86764915,0.00016438,2]
[425398890,1781748639000,-201.61929439,0.00016337,2]
[425398875,1781748639000,-738.62990023,0.00016236,2]
[425398878,1781748639000,-738.62990023,0.00016236,2]
[425398876,1781748639000,-738.62990023,0.00016236,2]
[425398907,1781748639000,-505.21286915,0.00016438,2]
[425398847,1781748639000,-176.26561844,0.00012694,7]
[425398848,1781748639000,-157.91793461,0.00013317,2]
[425398849,1781748639000,-264.39842768,0.00013441,7]
[425398846,1781748639000,-771.96611729,0.00012,2]
[425398852,1781748639000,-9942.91831039,0.00014098,2]
[425398850,1781748639000,-3535.927018,0.00013473,2]
[425398854,1781748639000,-509.25406833,0.00014099,2]
[425398851,1781748639000,-3892.3304019,0.00013782,2]
[425398853,1781748639000,-520.9454546,0.00014099,2]
[425398855,1781748639000,-322.53687608,0.00014277,2]
[425398857,1781748639000,-500.0,0.00014311,2]
[425398858,1781748639000,-372.403816,0.00014806,2]
[425398859,1781748639000,-258.27268922,0.00015,2]
[425398861,1781748639000,-320.0,0.00016,2]
[425398856,1781748639000,-677.46312392,0.00014277,2]
[425398862,1781748639000,-372.403816,0.00016052,2]
[425398863,1781748639000,-738.62990023,0.00016236,2]
[425398864,1781748639000,-738.62990023,0.00016236,2]
[425398867,1781748639000,-738.62990023,0.00016236,2]
[425398866,1781748639000,-233.98978832,0.00016236,2]
[425398868,1781748639000,-738.62990023,0.00016236,2]
[425398865,1781748639000,-738.62990023,0.00016236,2]
[425398871,1781748639000,-738.62990023,0.00016236,2]
[425398870,1781748639000,-738.62990023,0.00016236,2]
[425398869,1781748639000,-738.62990023,0.00016236,2]
[425398872,1781748639000,-738.62990023,0.00016236,2]
[425398873,1781748639000,-738.62990023,0.00016236,2]
[425398904,1781748639000,-500.0,0.00016438,2]
[425398860,1781748639000,-372.403816,0.00015429,2]
[425398910,1781748639000,-508.73586112,0.00016438,2]
[425398941,1781748639000,-502.98865276,0.00016438,2]
[425398946,1781748639000,-504.14293853,0.00016438,2]
[425398942,1781748639000,-1003.52333577,0.00016438,2]
[425398945,1781748639000,-510.7750973,0.00016438,2]
[425398943,1781748639000,-504.88985402,0.00016438,2]
[425398947,1781748639000,-518.15398535,0.00016438,2]
[425398944,1781748639000,-281.44258112,0.00016438,2]
[425398950,1781748639000,-500.86374216,0.00016438,2]
[425398948,1781748639000,-494.43506381,0.00016438,2]
[425398951,1781748639000,-525.88850128,0.00016438,2]
[425398952,1781748639000,-507.28758612,0.00016438,2]
[425398953,1781748639000,-506.48504081,0.00016438,2]
[425398954,1781748639000,-516.35858985,0.00016438,2]
[425398938,1781748639000,-507.2507673,0.00016438,2]
[425398956,1781748639000,-509.34960323,0.00016438,2]
[425398960,1781748639000,-525.85456678,0.00016438,2]
[425398959,1781748639000,-507.75820577,0.00016438,2]
[425398958,1781748639000,-507.67957153,0.00016438,2]
[425398955,1781748639000,-515.94584542,0.00016438,2]
[425398961,1781748639000,-419.33739747,0.00016438,2]
[425398963,1781748639000,-509.32143916,0.00016438,2]
[425398966,1781748639000,-507.28662448,0.00016438,2]
[425398965,1781748639000,-565.70690382,0.00016438,2]
[425398964,1781748639000,-508.06177852,0.00016438,2]
[425398962,1781748639000,-501.32744979,0.00016438,2]
[425398967,1781748639000,-506.62565489,0.00016438,2]
[425398968,1781748639000,-507.0227504,0.00016438,2]
[425398905,1781748639000,-513.12756754,0.00016438,2]
[425398957,1781748639000,-517.28935477,0.00016438,2]
[425398939,1781748639000,-509.40700383,0.00016438,2]
[425398949,1781748639000,-511.37015341,0.00016438,2]
[425398940,1781748639000,-514.04609979,0.00016438,2]
[425398908,1781748639000,-302.94253611,0.00016438,2]
[425398937,1781748639000,-513.3955169,0.00016438,2]
[425398913,1781748639000,-511.67360653,0.00016438,2]
[425398911,1781748639000,-519.08130568,0.00016438,2]
[425398909,1781748639000,-508.12106098,0.00016438,2]
[425398912,1781748639000,-364.39480217,0.00016438,2]
[425398914,1781748639000,-506.87542333,0.00016438,2]
[425398915,1781748639000,-500.57507249,0.00016438,2]
[425398916,1781748639000,-502.14762514,0.00016438,2]